bitfinex-derivatives/quotes_SOLF0:USTF0_20260311
["timestamp","ask_amount","ask_price","bid_price","bid_amount"]
[1773259896121,3.52677082,87.12,87.084,3.90277148]
[1773259896424,3.75375545,87.121,87.084,3.90277148]
[1773259896624,3.5266198,87.12,87.084,3.90277148]
[1773259896818,3.75375545,87.121,87.084,3.90277148]
[1773259897016,3.5266198,87.12,87.084,3.90277148]
[1773259897314,3.75375545,87.121,87.084,3.90277148]
[1773259898727,3.75375545,87.12,87.084,3.90277148]
[1773259900326,3.86238571,87.118,87.084,3.90277148]
[1773259907029,3.86238571,87.118,87.086,10.332]
[1773259907630,3.52495368,87.125,87.095,3.91833465]
[1773259907933,14.46,87.126,87.095,3.91833465]
[1773259908129,3.52495368,87.138,87.101,3.91833465]
[1773259908333,14.46,87.137,87.101,3.91833465]
[1773259909333,14.46,87.137,87.107,10.33]
[1773259909535,14.46,87.137,87.107,14.24833465]
[1773259909733,14.46,87.137,87.108,3.89410236]
[1773259909934,14.46,87.138,87.108,3.89410236]
[1773259913336,14.46,87.138,87.109,10.33]
[1773259913536,3.69900392,87.145,87.109,10.33]
[1773259913837,3.69900392,87.129,87.086,3.89410236]
[1773259914038,3.69900392,87.127,87.091,3.89410236]
[1773259914238,14.46,87.126,87.091,3.89410236]
[1773259914638,14.46,87.126,87.095,3.89410236]
[1773259914841,14.46,87.133,87.095,3.89410236]
[1773259915434,7.2239576,87.141,87.095,3.89410236]
[1773259915638,14.46,87.14,87.095,3.89410236]
[1773259916440,14.46,87.14,87.105,10.33]
[1773259917047,21.6839576,87.14,87.105,10.33]
[1773259917248,18.15900392,87.14,87.105,10.33]
[1773259917747,21.6839576,87.14,87.105,10.33]
[1773259917948,18.15900392,87.14,87.105,10.33]
[1773259918251,3.52495368,87.139,87.105,10.33]
[1773259918849,18.15900392,87.14,87.11,10.33]
[1773259919049,14.46,87.139,87.11,14.22410236]
[1773259920148,14.46,87.139,87.074,20.668]
[1773259920149,14.46,87.141,87.113,3.89410236]
[1773259920343,3.51552119,87.142,87.113,3.89410236]
[1773259920544,3.69900392,87.143,87.112,10.329]
[1773259920745,3.69900392,87.143,87.1,3.89410236]
[1773259921052,3.69900392,87.142,87.1,3.89410236]
[1773259922346,14.46,87.144,87.106,3.89410236]
[1773259922551,3.51736621,87.143,87.106,3.89410236]
[1773259922851,3.69900392,87.143,87.106,3.89410236]
[1773259923243,3.51769752,87.142,87.106,3.89410236]
[1773259923449,3.69900392,87.143,87.106,3.89410236]
[1773259923651,3.51653204,87.142,87.106,3.89410236]
[1773259923951,3.51653204,87.141,87.106,3.89410236]
[1773259924250,3.69900392,87.143,87.106,3.89410236]
[1773259924452,3.51682647,87.142,87.107,14.22410236]
[1773259924657,3.51682647,87.141,87.107,14.22410236]
[1773259924846,3.69900392,87.143,87.107,14.22410236]
[1773259925050,3.51682707,87.142,87.107,14.22410236]
[1773259925248,3.51682707,87.141,87.107,14.22410236]
[1773259925448,3.69900392,87.143,87.107,14.22410236]
[1773259925752,3.51708114,87.142,87.107,14.22410236]
[1773259925953,3.51708114,87.141,87.107,14.22410236]
[1773259926146,3.51683484,87.14,87.107,14.22410236]
[1773259926346,3.69900392,87.143,87.109,10.33]
[1773259926548,3.51703151,87.142,87.109,10.33]
[1773259926750,3.51703151,87.141,87.109,10.33]
[1773259926956,3.51703151,87.14,87.109,10.33]
[1773259927256,3.69900392,87.143,87.109,14.22410236]
[1773259927458,3.51730543,87.142,87.11,3.89410236]
[1773259927654,3.51730543,87.141,87.11,3.89410236]
[1773259927952,3.51730543,87.14,87.11,3.89410236]
[1773259928146,3.69900392,87.143,87.11,3.89410236]
[1773259928346,3.51724846,87.142,87.11,3.89410236]
[1773259928552,3.51724846,87.141,87.11,3.89410236]
[1773259928752,3.51724846,87.14,87.11,3.89410236]
[1773259928953,3.69900392,87.143,87.11,3.89410236]
[1773259929157,3.51730739,87.142,87.11,3.89410236]
[1773259929358,3.51730739,87.141,87.112,10.329]
[1773259929559,3.51730739,87.14,87.112,10.329]
[1773259929858,3.69900392,87.143,87.112,10.329]
[1773259930059,3.51702276,87.142,87.112,10.329]
[1773259930250,3.51702276,87.141,87.112,10.329]
[1773259930454,3.51691275,87.14,87.112,10.329]
[1773259930654,3.69900392,87.143,87.112,10.329]
[1773259930858,3.51697428,87.142,87.112,10.329]
[1773259931058,3.51697428,87.141,87.112,10.329]
[1773259931258,3.69900392,87.143,87.11,3.89410236]
[1773259931559,3.51683359,87.142,87.11,3.89410236]
[1773259931754,3.51683359,87.141,87.11,3.89410236]
[1773259931950,3.69900392,87.143,87.11,3.89410236]
[1773259932151,3.51683498,87.142,87.11,3.89410236]
[1773259932349,3.69900392,87.143,87.11,3.89410236]
[1773259932350,3.51683498,87.141,87.11,3.89410236]
[1773259932552,3.69900392,87.143,87.11,3.89410236]
[1773259932752,3.51679261,87.142,87.111,3.89410236]
[1773259932959,3.51679261,87.141,87.111,3.89410236]
[1773259933161,10.326,87.138,87.111,3.89410236]
[1773259933361,3.51709689,87.137,87.111,3.89410236]
[1773259933664,3.51709831,87.143,87.111,3.89410236]
[1773259933851,3.51709831,87.142,87.111,3.89410236]
[1773259934054,3.51709831,87.141,87.111,3.89410236]
[1773259934359,14.46,87.144,87.112,10.329]
[1773259934555,3.51680466,87.143,87.112,10.329]
[1773259934755,3.51680466,87.142,87.112,14.22310236]
[1773259935061,3.51680466,87.141,87.113,3.89410236]
[1773259935258,14.46,87.144,87.113,3.89410236]
[1773259935459,3.51684741,87.143,87.113,3.89410236]
[1773259935660,3.51684741,87.142,87.113,3.89410236]
[1773259935861,3.51684741,87.141,87.113,3.89410236]
[1773259936162,3.51692417,87.14,87.113,3.89410236]
[1773259936363,14.46,87.144,87.113,3.89410236]
[1773259936662,3.5169298,87.143,87.113,3.89410236]
[1773259936862,3.5169298,87.142,87.113,3.89410236]
[1773259937053,3.5169298,87.141,87.113,3.89410236]
[1773259937254,3.5169298,87.14,87.113,3.89410236]
[1773259937457,14.46,87.144,87.113,3.89410236]
[1773259937756,3.51704691,87.143,87.113,3.89410236]
[1773259937954,3.51704691,87.142,87.113,3.89410236]
[1773259938157,3.51704691,87.141,87.113,3.89410236]
[1773259938358,3.51704691,87.14,87.113,3.89410236]
[1773259938564,14.46,87.144,87.113,3.89410236]
[1773259938764,3.51719712,87.143,87.113,3.89410236]
[1773259939067,3.51719712,87.142,87.113,3.89410236]
[1773259939361,3.69900392,87.165,87.117,3.89410236]
[1773259939665,3.69900392,87.163,87.117,3.89410236]
[1773259939859,3.69900392,87.161,87.117,3.89410236]
[1773259941367,3.69900392,87.161,87.122,10.328]
[1773259942670,3.70189707,87.158,87.117,3.89410236]
[1773259943070,3.70189707,87.149,87.101,3.72335065]
[1773259944471,3.70189707,87.146,87.105,3.72335065]
[1773259945574,3.70189707,87.146,87.109,10.33]
[1773259949677,3.70189707,87.144,87.105,3.72335065]
[1773259949981,3.70189707,87.139,87.105,3.72335065]
[1773259950475,3.70189707,87.129,87.079,3.72335065]
[1773259950675,3.70189707,87.127,87.079,3.72335065]
[1773259951278,3.528809,87.126,87.079,3.72335065]
[1773259951479,3.528809,87.125,87.089,3.72335065]
[1773259951777,3.528809,87.124,87.089,3.72335065]
[1773259951979,3.528809,87.123,87.089,3.72335065]
[1773259952176,3.528809,87.122,87.089,3.72335065]
[1773259952379,3.528809,87.121,87.089,3.72335065]
[1773259952573,3.528809,87.12,87.089,3.72335065]
[1773259952782,3.528809,87.119,87.089,3.72335065]
[1773259952978,3.528809,87.118,87.089,3.72335065]
[1773259953280,14.46,87.123,87.089,3.72335065]
[1773259953480,3.53059858,87.122,87.091,10.332]
[1773259953782,3.53059858,87.121,87.091,10.332]
[1773259953982,3.53059858,87.12,87.091,14.05535065]
[1773259954173,3.53059858,87.119,87.091,14.05535065]
[1773259954481,3.53059858,87.118,87.091,14.05535065]
[1773259954682,14.46,87.123,87.091,14.05535065]
[1773259954982,3.53036685,87.122,87.091,14.05535065]
[1773259955183,3.53036685,87.121,87.091,14.05535065]
[1773259955484,3.53036685,87.12,87.091,14.05535065]
[1773259955779,3.53036685,87.119,87.091,14.05535065]
[1773259955980,14.46,87.123,87.091,14.05535065]
[1773259956181,3.52985939,87.122,87.091,14.05535065]
[1773259956383,17.98985939,87.121,87.091,14.05535065]
[1773259956682,3.52985939,87.12,87.091,14.05535065]
[1773259956882,3.52985939,87.119,87.091,14.05535065]
[1773259957082,14.46,87.121,87.091,14.05535065]
[1773259957283,3.52927905,87.12,87.091,14.05535065]
[1773259957483,14.46,87.121,87.091,14.05535065]
[1773259957684,3.52897012,87.12,87.091,14.05535065]
[1773259957884,14.46,87.121,87.091,14.05535065]
[1773259958080,3.52896766,87.12,87.091,14.05535065]
[1773259958384,14.46,87.121,87.091,14.05535065]
[1773259958582,3.52857696,87.12,87.091,14.05535065]
[1773259958784,14.46,87.121,87.091,14.05535065]
[1773259958983,3.52857696,87.12,87.091,14.05535065]
[1773259959183,14.46,87.121,87.091,14.05535065]
[1773259959384,3.5284327,87.12,87.091,14.05535065]
[1773259959584,14.46,87.121,87.091,3.72335065]
[1773259959785,17.98844766,87.12,87.091,3.72335065]
[1773259960084,14.46,87.12,87.091,3.72335065]
[1773259962787,3.526992,87.119,87.091,3.72335065]
[1773259962981,3.526992,87.118,87.091,3.72335065]
[1773259963186,3.526992,87.117,87.091,3.72335065]
[1773259963382,14.46,87.12,87.091,3.72335065]
[1773259963580,3.52622032,87.119,87.091,3.72335065]
[1773259963786,3.52622032,87.118,87.091,3.72335065]
[1773259963976,3.52622032,87.117,87.091,3.72335065]
[1773259964180,14.46,87.12,87.091,3.72335065]
[1773259964382,3.52577533,87.119,87.091,3.72335065]
[1773259964678,3.52577533,87.118,87.091,3.72335065]
[1773259964883,3.52577533,87.117,87.091,3.72335065]
[1773259965081,14.46,87.12,87.091,3.72335065]
[1773259965283,3.52583702,87.119,87.091,3.72335065]
[1773259965483,3.52583702,87.118,87.091,3.72335065]
[1773259965680,3.52583702,87.117,87.091,3.72335065]
[1773259965879,14.46,87.12,87.091,3.72335065]
[1773259966084,3.52548485,87.119,87.091,3.72335065]
[1773259966384,14.46,87.12,87.091,3.72335065]
[1773259966692,3.5251735,87.119,87.091,3.72335065]
[1773259966892,3.5251735,87.118,87.091,3.72335065]
[1773259967186,14.46,87.13,87.092,3.98796392]
[1773259967386,3.52508019,87.129,87.092,3.98796392]
[1773259967590,3.52508019,87.128,87.092,3.98796392]
[1773259967792,3.52508019,87.127,87.092,3.98796392]
[1773259968089,3.52508019,87.126,87.092,3.98796392]
[1773259968392,3.52508019,87.125,87.093,3.98796392]
[1773259968582,3.52508019,87.124,87.093,3.98796392]
[1773259968890,14.46,87.13,87.093,3.98796392]
[1773259969091,3.52540766,87.129,87.093,3.98796392]
[1773259969289,3.52540766,87.128,87.093,3.98796392]
[1773259969491,3.52540766,87.127,87.093,3.98796392]
[1773259969789,3.52540766,87.126,87.093,3.98796392]
[1773259969989,3.52540766,87.125,87.093,3.98796392]
[1773259970191,14.46,87.13,87.093,3.98796392]
[1773259970392,3.52528011,87.129,87.093,3.98796392]
[1773259970696,3.52528011,87.128,87.093,3.98796392]
[1773259970990,3.52528011,87.129,87.093,3.98796392]
[1773259971190,3.52597312,87.128,87.093,3.98796392]
[1773259971391,3.52597312,87.129,87.093,3.98796392]
[1773259971590,17.98597312,87.128,87.093,3.98796392]
[1773259971794,14.46,87.128,87.093,3.98796392]
[1773259975292,17.97853874,87.128,87.093,3.98796392]
[1773259975493,14.46,87.128,87.093,3.98796392]
[1773259975894,7.50487402,87.133,87.096,3.69703523]
[1773259976091,10.327,87.137,87.096,3.69703523]
[1773259976092,21.96487402,87.132,87.096,3.69703523]
[1773259976394,7.50486234,87.131,87.096,3.69703523]
[1773259976692,7.50486234,87.13,87.096,3.69703523]
[1773259976889,3.51852706,87.129,87.096,3.69703523]
[1773259977087,3.51852706,87.128,87.096,3.69703523]
[1773259977286,3.98633528,87.13,87.096,3.69703523]
[1773259977591,3.51882297,87.129,87.096,3.69703523]
[1773259977792,3.51882297,87.128,87.096,3.69703523]
[1773259978087,3.98633528,87.13,87.096,3.69703523]
[1773259978290,3.51882297,87.129,87.096,3.69703523]
[1773259978493,3.51882297,87.128,87.096,3.69703523]
[1773259978690,3.51882297,87.127,87.096,3.69703523]
[1773259978900,3.98633528,87.13,87.096,3.69703523]
[1773259979100,3.51932221,87.129,87.096,3.69703523]
[1773259979296,3.51932221,87.128,87.096,3.69703523]
[1773259979492,17.97932221,87.127,87.096,3.69703523]
[1773259979697,14.46,87.127,87.096,3.69703523]
[1773259981493,3.98633528,87.125,87.096,3.69703523]
[1773259982396,3.98633528,87.125,87.035,5.37566997]
[1773259982602,2.45920735,87.11,87.051,5.37566997]
[1773259982801,17.98032558,87.109,87.051,5.37566997]
[1773259983003,3.52032558,87.108,87.051,5.37566997]
[1773259983302,3.52032558,87.107,87.051,5.37566997]
[1773259983502,3.52032558,87.106,87.051,5.37566997]
[1773259983702,3.52032558,87.105,87.051,5.37566997]
[1773259983893,3.52032558,87.104,87.051,5.37566997]
[1773259984096,3.52032558,87.103,87.051,5.37566997]
[1773259984298,3.52032558,87.108,87.051,5.37566997]
[1773259984500,3.52032558,87.107,87.053,5.32537691]
[1773259984704,14.46,87.109,87.053,5.32537691]
[1773259985506,14.46,87.109,87.055,5.32537691]
[1773259986606,10.33,87.108,87.06,5.32932907]
[1773259986906,3.52032558,87.134,87.091,5.32932907]
[1773259987105,20.647,87.165,87.091,5.32932907]
[1773259987106,3.52032558,87.133,87.091,5.32932907]
[1773259987305,2.45920735,87.14,87.091,5.32932907]
[1773259987306,17.98032558,87.132,87.091,5.32932907]
[1773259987496,3.52032558,87.131,87.091,5.32932907]
[1773259987700,3.52032558,87.13,87.091,5.32932907]
[1773259987901,3.52032558,87.129,87.091,5.32932907]
[1773259988097,3.52032558,87.131,87.091,5.32932907]
[1773259988407,3.52032558,87.13,87.091,5.32932907]
[1773259988706,3.52032558,87.129,87.091,5.32932907]
[1773259988902,3.52032558,87.128,87.091,5.32932907]
[1773259989204,3.52032558,87.127,87.08,7.78403084]
[1773259989404,3.52032558,87.126,87.081,5.32482349]
[1773259989707,3.52032558,87.125,87.081,5.32482349]
[1773259989908,3.52032558,87.131,87.081,5.32482349]
[1773259990110,3.52032558,87.13,87.081,5.32482349]
[1773259990412,10.328,87.122,87.081,5.32482349]
[1773259991307,10.328,87.122,87.083,5.32624191]
[1773259991608,13.84732558,87.13,87.083,5.32624191]
[1773259991809,3.52032558,87.129,87.09,2.45920735]
[1773259992010,3.52032558,87.128,87.09,2.45920735]
[1773259992211,3.52032558,87.127,87.09,7.7888913]
[1773259992512,3.52032558,87.126,87.09,7.7888913]
[1773259992710,3.52032558,87.125,87.09,7.7888913]
[1773259992905,3.52032558,87.124,87.09,7.7888913]
[1773259993103,3.52032558,87.123,87.09,7.7888913]
[1773259993312,3.52032558,87.122,87.091,5.32968395]
[1773259993510,3.52032558,87.121,87.091,5.32968395]
[1773259993708,3.52032558,87.12,87.091,5.32968395]
[1773259994008,3.52032558,87.119,87.091,5.32968395]
[1773259994207,10.327,87.13,87.091,5.32968395]
[1773259994408,3.52129581,87.129,87.091,5.32968395]
[1773259994604,3.52129581,87.128,87.091,5.32968395]
[1773259994813,3.52129581,87.127,87.091,5.32968395]
[1773259995113,3.52129581,87.126,87.091,5.32968395]
[1773259995312,3.52129581,87.125,87.091,5.32968395]
[1773259995607,3.52129581,87.124,87.091,5.32968395]
[1773259995803,10.327,87.13,87.091,5.32968395]
[1773259996812,3.52472805,87.129,87.091,5.32968395]
[1773259997012,3.52472805,87.128,87.091,5.32968395]
[1773259997314,3.52472805,87.127,87.093,5.32051369]
[1773259997506,3.52472805,87.126,87.093,5.32051369]
[1773259997710,3.52472805,87.125,87.093,5.32051369]
[1773259998016,3.52472805,87.124,87.093,5.32051369]
[1773259998316,3.52472805,87.123,87.093,5.32051369]
[1773259998514,3.52472805,87.122,87.093,5.32051369]
[1773259998713,3.52472805,87.121,87.093,5.32051369]
[1773259999011,3.52472805,87.12,87.093,5.32051369]
[1773259999213,3.52472805,87.119,87.093,5.32051369]
[1773259999412,14.46,87.132,87.093,5.32051369]
[1773259999613,3.52509653,87.131,87.093,5.32051369]
[1773259999814,3.52509653,87.13,87.093,5.32051369]
[1773260000118,3.52509653,87.129,87.093,5.32051369]
[1773260000418,3.52509653,87.128,87.093,5.32051369]
[1773260000619,3.52509653,87.127,87.093,5.32051369]
[1773260000811,3.52509653,87.126,87.093,5.32051369]
[1773260001014,3.52509653,87.125,87.093,5.32051369]
[1773260001218,3.52509653,87.124,87.093,5.32051369]
[1773260001515,3.52509653,87.123,87.093,5.32051369]
[1773260001712,3.52509653,87.122,87.093,5.32051369]
[1773260001920,3.52509653,87.121,87.093,5.32051369]
[1773260002116,3.52509653,87.12,87.093,5.32051369]
[1773260002315,3.52509653,87.119,87.093,5.32051369]
[1773260002516,10.327,87.13,87.093,5.32051369]
[1773260002711,3.52509424,87.129,87.093,5.32051369]
[1773260002912,3.52509424,87.128,87.093,5.32051369]
[1773260003123,3.52509424,87.127,87.093,5.32051369]
[1773260003420,3.52509424,87.126,87.093,5.32051369]
[1773260003620,3.52509424,87.125,87.093,5.32051369]
[1773260003823,3.52509424,87.124,87.093,5.32051369]
[1773260004122,3.52509424,87.123,87.093,5.32051369]
[1773260004323,3.52509424,87.122,87.093,5.32051369]
[1773260004522,3.52509424,87.121,87.093,5.32051369]
[1773260004821,3.52509424,87.121,87.052,20.674]
[1773260004822,14.46,87.149,87.117,5.3290786]
[1773260005020,14.46,87.148,87.117,5.3290786]
[1773260006118,10.325,87.147,87.107,10.33]
[1773260006624,14.46,87.148,87.105,5.33488731]
[1773260008425,10.326,87.142,87.105,5.33488731]
[1773260013525,24.785,87.148,87.106,5.3352417]
[1773260014327,24.785,87.148,87.108,10.33]
[1773260015529,24.785,87.148,87.109,5.33515646]
[1773260016931,10.326,87.144,87.109,5.33515646]
[1773260017231,3.50943099,87.143,87.109,5.33515646]
[1773260017431,3.50943099,87.142,87.109,5.33515646]
[1773260017630,3.50943099,87.141,87.109,5.33515646]
[1773260017824,3.50943099,87.147,87.109,5.33515646]
[1773260018026,3.50943099,87.146,87.109,5.33515646]
[1773260018225,3.50943099,87.145,87.109,5.33515646]
[1773260018430,10.326,87.142,87.109,5.33515646]
[1773260018831,13.83543099,87.142,87.109,5.33515646]
[1773260019133,10.326,87.142,87.109,5.33515646]
[1773260020332,13.83543099,87.142,87.109,5.33515646]
[1773260020534,10.326,87.142,87.109,5.33515646]
[1773260021233,3.50943099,87.144,87.109,5.33515646]
[1773260021429,3.50943099,87.143,87.109,5.33515646]
[1773260021633,3.50943099,87.147,87.109,5.33515646]
[1773260021832,3.50943099,87.146,87.109,5.33515646]
[1773260022029,3.50943099,87.147,87.109,5.33515646]
[1773260022427,3.50943099,87.147,87.11,5.40652782]
[1773260023330,24.785,87.148,87.11,5.40652782]
[1773260024338,10.68567747,87.183,87.075,21.45446693]
[1773260024339,3.50943099,87.154,87.12,2.45920735]
[1773260024538,17.96943099,87.163,87.121,5.46190564]
[1773260024733,3.50943099,87.162,87.121,5.46190564]
[1773260025333,10.324,87.161,87.122,10.328]
[1773260025535,10.324,87.161,87.123,5.46190564]
[1773260026834,14.46,87.163,87.127,10.328]
[1773260027833,10.324,87.162,87.123,5.46190564]
[1773260029946,2.45920735,87.16,87.113,5.44999271]
[1773260030236,3.50943099,87.159,87.113,5.44999271]
[1773260030441,3.50943099,87.158,87.113,5.44999271]
[1773260030641,3.50943099,87.157,87.113,5.44999271]
[1773260030840,3.50943099,87.156,87.113,5.44999271]
[1773260031041,3.50943099,87.155,87.113,5.44999271]
[1773260031235,3.50943099,87.154,87.113,5.44999271]
[1773260031442,10.325,87.15,87.113,5.44999271]
[1773260032145,13.83443099,87.15,87.113,5.44999271]
[1773260032441,3.51153571,87.149,87.113,5.44999271]
[1773260035244,10.325,87.15,87.113,5.44999271]
[1773260035440,3.51609486,87.149,87.113,5.44999271]
[1773260035640,10.325,87.15,87.113,5.44999271]
[1773260035845,3.51609486,87.149,87.113,5.44999271]
[1773260036044,10.325,87.15,87.113,5.44999271]
[1773260036347,3.51609486,87.149,87.113,5.44999271]
[1773260036647,10.325,87.15,87.113,5.44999271]
[1773260036843,3.51631192,87.149,87.113,5.44999271]
[1773260037043,10.325,87.15,87.113,5.44999271]
[1773260037244,3.51631192,87.149,87.113,5.44999271]
[1773260037443,3.51631192,87.148,87.113,5.44999271]
[1773260037644,10.325,87.15,87.113,5.44999271]
[1773260037946,3.51654875,87.149,87.113,5.44999271]
[1773260038138,3.51654875,87.148,87.113,5.44999271]
[1773260038337,10.325,87.15,87.113,5.44999271]
[1773260038538,3.51687043,87.149,87.113,5.44999271]
[1773260038743,3.51687043,87.148,87.113,5.44999271]
[1773260039046,10.325,87.15,87.113,5.44999271]
[1773260039248,3.51687678,87.149,87.113,5.44999271]
[1773260039442,3.51687678,87.148,87.113,5.44999271]
[1773260039648,3.51687678,87.147,87.113,5.44999271]
[1773260039851,10.325,87.15,87.113,5.44999271]
[1773260040046,3.51717368,87.149,87.113,5.44999271]
[1773260040246,3.51717368,87.148,87.113,5.44999271]
[1773260040447,3.51717368,87.147,87.113,5.44999271]
[1773260040653,3.51735216,87.146,87.091,5.4417828]
[1773260040848,2.4577903,87.14,87.091,5.4417828]
[1773260041149,3.51735216,87.139,87.091,5.4417828]
[1773260041350,3.51735216,87.138,87.091,5.4417828]
[1773260041551,3.51735216,87.137,87.091,5.4417828]
[1773260041746,3.51735216,87.136,87.091,5.4417828]
[1773260041949,3.51735216,87.135,87.099,5.42724706]
[1773260042146,3.51735216,87.134,87.099,5.42724706]
[1773260042343,3.51735216,87.133,87.099,5.42724706]
[1773260042548,14.46,87.138,87.111,5.42724706]
[1773260042750,3.51747152,87.148,87.111,5.42724706]
[1773260042951,17.97747152,87.147,87.111,5.42724706]
[1773260043244,17.97747152,87.146,87.111,5.42724706]
[1773260043450,2.4577903,87.12,87.067,5.42724706]
[1773260043652,17.97747152,87.119,87.067,5.42724706]
[1773260043848,2.4577903,87.11,87.067,5.42724706]
[1773260044049,10.33,87.107,87.069,5.40649471]
[1773260049550,3.51321009,87.118,87.069,5.40649471]
[1773260050243,14.46,87.119,87.069,5.40649471]
[1773260050448,14.46,87.119,87.077,5.38137172]
[1773260051748,10.329,87.116,87.077,5.38137172]
[1773260054457,14.46,87.115,87.077,5.38137172]
[1773260064669,10.329,87.116,87.079,5.40278486]
[1773260064871,14.46,87.115,87.079,5.40278486]
[1773260073281,14.46,87.115,87.081,5.41211877]
[1773260074480,14.46,87.115,87.091,10.332]
[1773260079280,14.46,87.115,87.095,5.4417794]
[1773260079678,3.48689573,87.134,87.095,5.4417794]
[1773260079882,14.46,87.128,87.095,5.4417794]
[1773260080283,3.48689573,87.127,87.095,5.4417794]
[1773260080483,3.48689573,87.127,87.098,10.331]
[1773260081282,3.48689573,87.126,87.098,10.331]
[1773260081482,3.48689573,87.125,87.098,10.331]
[1773260081785,3.48689573,87.127,87.098,10.331]
[1773260081984,14.46,87.128,87.098,10.331]
[1773260082775,14.46,87.128,87.095,5.4417794]
[1773260083381,2.4577903,87.12,87.069,5.43905356]
[1773260083578,14.46,87.119,87.071,5.43905356]
[1773260083785,14.46,87.118,87.081,5.43905356]
[1773260084483,14.46,87.118,87.088,5.43867165]
[1773260084692,14.46,87.126,87.088,5.43867165]
[1773260084883,3.50167423,87.125,87.088,5.43867165]
[1773260085080,3.50167423,87.124,87.097,10.331]
[1773260085286,3.50167423,87.123,87.097,10.331]
[1773260085483,3.50167423,87.122,87.097,10.331]
[1773260085689,3.50167423,87.121,87.097,10.331]
[1773260085889,14.46,87.126,87.097,10.331]
[1773260085890,3.50190534,87.12,87.097,10.331]
[1773260086191,14.46,87.126,87.097,10.331]
[1773260086392,3.50217385,87.125,87.097,10.331]
[1773260086592,3.50217385,87.124,87.097,10.331]
[1773260086793,3.50217385,87.123,87.097,10.331]
[1773260086994,3.50217385,87.122,87.097,10.331]
[1773260087192,3.50217385,87.121,87.097,10.331]
[1773260087389,3.50217385,87.12,87.097,10.331]
[1773260087589,14.46,87.126,87.097,10.331]
[1773260087790,3.50239497,87.125,87.097,10.331]
[1773260087990,3.50239497,87.124,87.097,10.331]
[1773260088290,14.46,87.126,87.097,10.331]
[1773260088291,3.50239497,87.123,87.097,10.331]
[1773260088490,3.50239497,87.122,87.097,10.331]
[1773260088690,3.50239497,87.121,87.097,10.331]
[1773260088891,3.50239497,87.12,87.097,10.331]
[1773260089094,3.50239497,87.119,87.097,10.331]
[1773260089394,3.50239497,87.118,87.097,10.331]
[1773260089687,14.46,87.126,87.088,5.43867165]
[1773260089893,3.50407865,87.125,87.088,5.43867165]
[1773260090092,3.50407865,87.124,87.088,5.43867165]
[1773260090294,3.50407865,87.123,87.088,5.43867165]
[1773260090495,3.50407865,87.122,87.088,5.43867165]
[1773260090690,3.50407865,87.121,87.088,5.43867165]
[1773260090887,3.50407865,87.12,87.088,5.43867165]
[1773260091090,3.50407865,87.119,87.101,10.331]
[1773260091290,14.46,87.126,87.088,5.43867165]
[1773260091499,3.5038356,87.125,87.088,5.43867165]
[1773260091699,14.46,87.126,87.088,5.43867165]
[1773260092492,14.46,87.126,87.093,15.75351115]
[1773260096100,14.46,87.126,87.094,5.40266128]
[1773260096998,14.46,87.126,87.095,10.331]
[1773260097400,14.46,87.126,87.095,15.73366128]
[1773260097995,14.46,87.126,87.07,10.56767097]
[1773260098200,2.4577903,87.12,87.07,10.56767097]
[1773260098501,10.328,87.128,87.089,10.56767097]
[1773260098702,14.46,87.127,87.089,10.56767097]
[1773260099195,10.328,87.125,87.089,10.56767097]
[1773260104206,2.45968094,87.12,87.089,10.56767097]
[1773260106111,10.328,87.125,87.089,10.56767097]
[1773260111314,2.45968094,87.12,87.089,10.56767097]
[1773260117612,2.45968094,87.12,87.041,20.676]
[1773260117613,2.45968094,87.1,87.042,10.5459]
[1773260118323,2.45968094,87.1,87.059,10.54877815]
[1773260119320,2.45968094,87.1,87.063,10.54877815]
[1773260119822,10.33,87.107,87.063,10.54877815]
[1773260120124,2.45968094,87.09,87.063,10.54877815]
[1773260120323,10.331,87.098,87.063,10.54877815]
[1773260123121,2.45968094,87.1,87.063,10.54877815]
[1773260123330,14.46,87.111,87.063,10.54877815]
[1773260123629,14.46,87.115,87.063,10.54877815]
[1773260124623,10.328,87.124,87.083,10.56313401]
[1773260124819,14.46,87.123,87.083,10.56313401]
[1773260125323,14.46,87.123,87.085,10.56313401]
[1773260125832,14.46,87.123,87.086,10.333]
[1773260126030,10.327,87.133,87.087,10.57928841]
[1773260127429,2.45968094,87.13,87.087,10.57928841]
[1773260127930,2.45968094,87.13,87.09,10.57928841]
[1773260129434,10.327,87.129,87.09,10.57928841]
[1773260129734,2.45968094,87.13,87.09,10.57928841]
[1773260130533,10.327,87.13,87.09,10.57928841]
[1773260130937,10.328,87.123,87.09,10.57928841]